bitfinex/quotes_SOLUSD_20220208
["timestamp","ask_amount","ask_price","bid_price","bid_amount"]
[1644343627178,64.55967504,111.88,111.75,83.3795736]
[1644343627874,64.55967504,111.88,111.75,83.1295736]
[1644343628074,64.55967504,111.88,111.75,46.1965736]
[1644343628481,8.96425143,111.87,111.75,46.1965736]
[1644343628678,13.424,111.84,111.75,46.1965736]
[1644343628878,41.09175511,111.83,111.75,46.1965736]
[1644343629080,47.09175511,111.83,111.75,46.1965736]
[1644343630985,42.16312048,111.8,111.75,46.1965736]
[1644343631185,48.16312048,111.8,111.75,46.1965736]
[1644343631384,48.16312048,111.8,111.72,24.0328]
[1644343632185,48.41312048,111.8,111.72,24.0328]
[1644343632385,48.41312048,111.8,111.73,44.17281656]
[1644343632784,61.83712048,111.8,111.73,44.17281656]
[1644343633384,19.674,111.8,111.73,44.17281656]
[1644343634286,13.674,111.8,111.73,44.17281656]
[1644343635708,19.674,111.8,111.73,44.17281656]
[1644343635886,13.674,111.8,111.73,44.17281656]
[1644343636591,13.424,111.8,111.73,46.26323232]
[1644343636788,13.4215,111.82,111.73,59.93473232]
[1644343636996,2.51971891,111.87,111.73,82.77763232]
[1644343637192,11.05670752,111.87,111.73,88.77763232]
[1644343637387,2.51971891,111.88,111.73,88.77763232]
[1644343637589,44.52552007,111.86,111.73,103.0118685]
[1644343637988,13.418,111.85,111.73,103.0118685]
[1644343638189,39.12987526,111.84,111.73,103.0118685]
[1644343638391,6.0,111.85,111.73,103.0118685]
[1644343638794,50.7285,111.87,111.73,103.0118685]
[1644343639292,13.4187,111.84,111.73,80.68721656]
[1644343639493,45.1117838,111.83,111.73,80.68721656]
[1644343639693,51.1117838,111.83,111.73,80.68721656]
[1644343640092,51.3617838,111.83,111.73,80.68721656]
[1644343640792,6.25,111.83,111.74,2.09041576]
[1644343640992,0.25,111.83,111.75,13.4183]
[1644343641192,10.6274744,111.88,111.76,46.1832]
[1644343641393,4.6274744,111.88,111.76,46.1832]
[1644343641597,35.42087165,111.87,111.77,34.78787396]
[1644343641794,13.4171,111.85,111.77,34.78787396]
[1644343642094,38.77325088,111.84,111.77,40.78787396]
[1644343642493,4.6274744,111.88,111.77,40.78787396]
[1644343642494,2.51971891,111.88,111.78,2.09041576]
[1644343642694,6.0,111.88,111.78,26.06791576]
[1644343642894,6.0,111.88,111.78,31.81791576]
[1644343643093,6.0,111.88,111.78,26.06791576]
[1644343643300,55.91141891,111.9,111.78,26.06791576]
[1644343643498,13.4135,111.88,111.79,59.21926695]
[1644343643700,43.76133391,111.87,111.79,65.46926695]
[1644343643898,43.76133391,111.87,111.79,63.37885119]
[1644343644099,43.76133391,111.87,111.79,63.12885119]
[1644343644303,43.76133391,111.87,111.79,65.46926695]
[1644343644501,43.76133391,111.87,111.79,57.37885119]
[1644343644897,0.25,111.87,111.79,65.46926695]
[1644343645298,13.6641,111.88,111.79,65.46926695]
[1644343645697,13.6248,111.88,111.79,65.46926695]
[1644343645899,37.35143167,111.87,111.79,65.46926695]
[1644343646497,37.35143167,111.87,111.79,59.46926695]
[1644343646700,37.35143167,111.87,111.79,57.37885119]
[1644343647498,37.35143167,111.87,111.79,57.12885119]
[1644343647699,50.76593167,111.87,111.79,57.37885119]
[1644343648600,51.01593167,111.87,111.79,57.37885119]
[1644343649500,57.01593167,111.87,111.79,57.37885119]
[1644343649800,58.28539611,111.87,111.79,57.37885119]
[1644343650001,58.28539611,111.87,111.79,43.71435119]
[1644343650207,58.28539611,111.87,111.78,23.7275]
[1644343650400,1.26946444,111.86,111.78,0.25]
[1644343650601,13.4169,111.85,111.78,0.25]
[1644343651027,19.4169,111.85,111.78,0.25]
[1644343651220,47.56688853,111.84,111.78,0.25]
[1644343651425,47.56688853,111.84,111.77,46.66092573]
[1644343651621,53.56688853,111.84,111.77,66.07802573]
[1644343652021,47.56688853,111.84,111.77,66.07802573]
[1644343652923,60.98478853,111.84,111.77,66.07802573]
[1644343653122,66.98478853,111.84,111.77,66.07802573]
[1644343653723,60.98478853,111.84,111.77,66.07802573]
[1644343654524,60.98478853,111.84,111.77,60.07802573]
[1644343655826,61.23478853,111.84,111.77,60.07802573]
[1644343658430,61.23478853,111.84,111.77,46.66092573]
[1644343658631,68.50425297,111.84,111.77,46.66092573]
[1644343658831,68.50425297,111.84,111.76,45.5692]
[1644343659036,68.50425297,111.84,111.72,2.81910619]
[1644343659232,68.50425297,111.84,111.73,24.5183]
[1644343659437,1.26946444,111.83,111.73,24.5183]
[1644343659634,7.26946444,111.83,111.73,24.5183]
[1644343659833,50.77233167,111.82,111.74,58.88337165]
[1644343660032,56.77233167,111.82,111.74,58.88337165]
[1644343660232,50.77233167,111.82,111.74,58.88337165]
[1644343660842,58.04179611,111.82,111.74,45.46247165]
[1644343662435,20.69036444,111.82,111.74,58.88307165]
[1644343662637,14.68846444,111.83,111.74,67.22348741]
[1644343662837,19.419,111.83,111.74,61.22348741]
[1644343663039,20.68846444,111.83,111.74,60.97348741]
[1644343663237,20.68846444,111.83,111.74,59.13307165]
[1644343663438,48.67515462,111.82,111.74,60.97348741]
[1644343663639,68.09625462,111.82,111.74,58.88307165]
[1644343663938,69.61571906,111.82,111.74,58.88307165]
[1644343664437,69.61571906,111.82,111.74,45.46247165]
[1644343664643,69.61571906,111.82,111.73,24.5183]
[1644343664841,1.26946444,111.81,111.69,26.86241576]
[1644343665039,13.4256,111.78,111.69,30.772]
[1644343665239,13.4256,111.78,111.69,6.0]
[1644343665441,19.4256,111.78,111.69,6.0]
[1644343665638,36.24316558,111.77,111.7,44.37301509]
[1644343666739,49.66986558,111.77,111.7,44.37301509]
[1644343667341,49.91986558,111.77,111.7,44.37301509]
[1644343669038,6.0,111.78,111.7,57.79901509]
[1644343669238,13.4244,111.79,111.7,66.13943085]
[1644343669438,1.26946444,111.81,111.7,66.13943085]
[1644343669638,6.0,111.81,111.71,24.3105]
[1644343669838,31.19486444,111.82,111.71,24.5605]
[1644343670040,41.8207939,111.81,111.72,39.14459916]
[1644343670238,41.8207939,111.81,111.72,39.39459916]
[1644343670439,47.8207939,111.81,111.72,39.39459916]
[1644343670639,48.0707939,111.81,111.72,39.39459916]
[1644343670840,13.4229,111.8,111.74,42.91989176]
[1644343672841,13.6729,111.8,111.74,42.91989176]
[1644343673140,43.0975263,111.79,111.74,42.91989176]
[1644343674741,43.0975263,111.79,111.73,13.4223]
[1644343674944,56.5211263,111.79,111.71,48.5055]
[1644343675243,56.5211263,111.79,111.71,48.7555]
[1644343675244,62.5211263,111.79,111.71,48.7555]
[1644343675441,62.5211263,111.79,111.71,48.5055]
[1644343675641,62.5211263,111.79,111.71,84.5417073]
[1644343676643,62.5211263,111.79,111.71,48.5055]
[1644343676842,63.79059074,111.79,111.71,48.5055]
[1644343677052,63.79059074,111.79,111.68,0.024]
[1644343677246,1.26946444,111.77,111.65,0.024]
[1644343677446,13.4349,111.74,111.62,48.85590919]
[1644343677642,39.40144364,111.73,111.64,0.024]
[1644343677849,44.7895,111.72,111.63,37.56816609]
[1644343678143,45.51687656,111.71,111.64,0.024]
[1644343678343,45.51687656,111.71,111.63,37.56816609]
[1644343678544,58.95377656,111.71,111.63,37.56816609]
[1644343678747,65.20377656,111.71,111.63,37.56816609]
[1644343681149,65.20377656,111.71,111.63,37.54416609]
[1644343681948,64.95377656,111.71,111.63,37.54416609]
[1644343683250,65.20377656,111.71,111.63,37.54416609]
[1644343683452,65.20377656,111.71,111.63,39.63458185]
[1644343684051,65.20377656,111.71,111.63,37.54416609]
[1644343684251,64.95377656,111.71,111.63,37.54416609]
[1644343684474,64.95377656,111.71,111.62,0.024]
[1644343684855,64.95377656,111.71,111.61,0.024]
[1644343685056,64.95377656,111.71,111.59,0.024]
[1644343685453,89.31627656,111.71,111.59,38.90021953]
[1644343685655,89.56627656,111.71,111.6,0.024]
[1644343686655,89.56627656,111.71,111.6,2.11441576]
[1644343686856,13.4369,111.71,111.61,48.42732982]
[1644343687053,13.4323,111.72,111.62,0.024]
[1644343687254,1.26946444,111.75,111.62,2.11441576]
[1644343687454,25.46616444,111.77,111.63,50.56691576]
[1644343687767,25.46616444,111.77,111.66,13.4303]
[1644343687961,45.90595338,111.76,111.67,0.024]
[1644343688259,13.4299,111.74,111.65,24.4086]
[1644343688462,13.4299,111.74,111.64,0.024]
[1644343688663,19.4299,111.74,111.64,0.024]
[1644343689061,40.28183126,111.73,111.64,40.7596974]
[1644343689263,13.4329,111.72,111.65,0.024]
[1644343689462,35.90392095,111.71,111.64,54.1931974]
[1644343689662,41.90392095,111.71,111.64,54.1931974]
[1644343690264,55.33732095,111.71,111.64,0.024]
[1644343690464,55.33732095,111.71,111.63,0.024]
[1644343690865,55.58732095,111.71,111.63,0.024]
[1644343691864,55.58732095,111.71,111.63,38.49581646]
[1644343692685,55.33732095,111.71,111.64,2.09041576]
[1644343692882,41.90392095,111.71,111.65,46.50168943]
[1644343693083,22.5348,111.75,111.65,46.50168943]
[1644343693284,22.5348,111.75,111.65,71.50610519]
[1644343693484,6.0,111.75,111.65,71.50610519]
[1644343693686,6.0,111.76,111.65,77.50610519]
[1644343693885,6.0,111.76,111.65,101.58800519]
[1644343694086,35.50130085,111.76,111.65,101.58800519]
[1644343694285,45.31760715,111.74,111.65,106.67908943]
[1644343694688,51.31760715,111.74,111.65,106.67908943]
[1644343694884,51.56760715,111.74,111.65,106.67908943]
[1644343695287,13.4319,111.72,111.65,59.95718943]
[1644343695492,39.60071305,111.71,111.65,59.93318943]
[1644343695684,39.60071305,111.71,111.65,46.50168943]
[1644343697786,53.03431305,111.71,111.65,46.50168943]
[1644343697984,13.4336,111.71,111.65,46.50168943]
[1644343698184,1.26946444,111.75,111.65,59.93438943]
[1644343698384,6.0,111.73,111.65,59.95838943]
[1644343698587,7.26946444,111.76,111.65,59.93438943]
[1644343698785,7.26946444,111.76,111.66,0.024]
[1644343699089,13.4321,111.72,111.66,0.024]
[1644343699286,13.4321,111.72,111.65,59.93438943]
[1644343699287,48.63285704,111.72,111.65,59.93438943]
[1644343699587,13.4321,111.72,111.65,59.93438943]
[1644343699887,13.6821,111.72,111.65,59.93438943]
[1644343700788,55.17496409,111.72,111.65,59.93438943]
[1644343701594,61.17496409,111.72,111.65,46.50168943]
[1644343701791,61.17496409,111.72,111.65,46.52568943]
[1644343701989,19.4321,111.72,111.65,46.52568943]
[1644343702589,13.4311,111.73,111.66,2.09041576]
[1644343702799,13.4311,111.73,111.66,0.024]
[1644343702990,58.65618376,111.73,111.65,13.4317]
[1644343703189,58.65618376,111.73,111.64,0.024]
[1644343703190,64.65618376,111.73,111.64,0.024]
[1644343703391,64.65618376,111.73,111.63,0.024]
[1644343703595,65.9256482,111.73,111.63,13.4585]
[1644343703892,64.90618376,111.73,111.64,42.64230585]
[1644343704092,64.90618376,111.73,111.65,0.024]
[1644343704791,66.1756482,111.73,111.65,0.024]
[1644343705389,1.26946444,111.72,111.65,0.024]
[1644343705595,13.4366,111.7,111.65,0.024]
[1644343705991,19.4366,111.7,111.62,0.024]
[1644343706191,20.70606444,111.7,111.62,0.024]
[1644343706794,13.4408,111.67,111.62,0.024]
[1644343707093,34.18446814,111.66,111.61,46.9041]
[1644343707494,34.43446814,111.66,111.61,46.9041]
[1644343707694,34.43446814,111.66,111.6,47.91132778]
[1644343708197,13.4408,111.65,111.6,47.91132778]
[1644343708497,1.26946444,111.68,111.6,50.00174354]
[1644343708697,1.26946444,111.69,111.6,56.00174354]
[1644343708896,6.0,111.69,111.61,0.024]
[1644343709496,100.17146932,111.7,111.61,0.024]
[1644343709696,13.437,111.68,111.61,13.4611]
[1644343709998,13.437,111.68,111.62,38.06249472]
[1644343710198,13.687,111.68,111.62,38.03849472]
[1644343710396,19.687,111.68,111.62,38.03849472]
[1644343710597,37.06111532,111.68,111.62,38.03849472]
[1644343710796,43.06111532,111.68,111.62,51.47449472]
[1644343711195,6.25,111.68,111.62,51.47449472]
[1644343711397,0.25,111.68,111.62,51.47449472]
[1644343711798,6.0,111.7,111.62,51.47449472]
[1644343711997,7.26946444,111.71,111.62,53.56491048]
[1644343712199,13.4346,111.7,111.62,53.56491048]
[1644343712399,13.4346,111.7,111.62,53.58891048]
[1644343712602,19.4346,111.7,111.62,53.58891048]
[1644343713709,19.6446,111.7,111.62,53.58891048]
[1644343715915,19.6446,111.7,111.62,59.58891048]
[1644343716112,19.3946,111.7,111.62,59.58891048]
[1644343716311,19.3946,111.7,111.62,59.83891048]
[1644343716511,6.0,111.7,111.62,59.83891048]
[1644343716715,19.4334,111.71,111.62,59.83891048]
[1644343716916,19.4334,111.71,111.62,67.64891048]
[1644343717115,1.26946444,111.72,111.62,67.64891048]
[1644343717315,48.6101,111.74,111.63,23.0544]
[1644343717316,1.26946444,111.73,111.63,23.0544]
[1644343717516,1.26946444,111.73,111.66,13.4308]
[1644343717715,1.26946444,111.73,111.66,23.6098]
[1644343717915,2.51971891,111.77,111.66,25.70021576]
[1644343717916,1.26946444,111.74,111.66,25.70021576]
[1644343718115,1.26946444,111.74,111.67,62.18926094]
[1644343718320,13.4296,111.74,111.67,62.18926094]
[1644343719726,13.6796,111.74,111.67,75.61876094]
[1644343721727,39.57083958,111.73,111.66,13.4317]
[1644343721926,13.4324,111.72,111.65,0.024]
[1644343722126,19.4324,111.72,111.64,47.0839]
[1644343722728,19.4324,111.72,111.65,38.09362269]
[1644343722929,19.4324,111.72,111.65,38.11762269]
[1644343723126,43.94720155,111.71,111.65,38.11762269]
[1644343723327,13.4343,111.7,111.65,38.09362269]
[1644343724128,19.4343,111.7,111.65,38.09362269]
[1644343727339,13.4343,111.7,111.65,38.09362269]
[1644343727542,13.4333,111.71,111.65,38.09362269]
[1644343727741,13.4333,111.71,111.65,38.11762269]
[1644343727941,13.4333,111.71,111.65,38.09362269]
[1644343728145,19.6833,111.71,111.65,38.09362269]
[1644343730046,37.61862035,111.7,111.65,38.09362269]
[1644343730250,51.05272035,111.7,111.65,38.09362269]
[1644343730846,13.4341,111.7,111.65,38.09362269]
[1644343732649,52.37398998,111.69,111.64,0.024]
[1644343732847,52.37398998,111.69,111.64,6.0]
[1644343733146,58.37398998,111.69,111.63,19.459]
[1644343733347,58.37398998,111.69,111.63,6.024]
[1644343733747,58.37398998,111.69,111.63,0.024]
[1644343733949,58.37398998,111.69,111.61,0.024]
[1644343734149,58.37398998,111.69,111.57,1.25960919]
[1644343734150,13.4409,111.65,111.58,0.024]
[1644343734348,13.6909,111.65,111.58,0.024]
[1644343734548,19.6909,111.65,111.58,0.024]
[1644343734750,61.67670367,111.65,111.58,0.024]
[1644343735951,13.6909,111.65,111.58,13.4651]
[1644343736955,13.6909,111.65,111.59,37.13039764]
[1644343737155,13.6909,111.65,111.59,50.57049764]
[1644343737753,13.4409,111.65,111.59,50.57049764]
[1644343740261,39.08282828,111.64,111.58,0.024]
[1644343740462,13.4425,111.63,111.56,54.6974]
[1644343740757,19.4425,111.63,111.56,48.6974]
[1644343741255,19.4425,111.63,111.57,37.52638966]
[1644343741458,19.6925,111.63,111.57,37.52638966]
[1644343742255,41.22606892,111.62,111.57,37.52638966]
[1644343742656,54.66996892,111.62,111.57,43.52638966]
[1644343744358,13.4439,111.62,111.57,43.52638966]
[1644343745059,23.7283,111.66,111.57,43.52638966]
[1644343745060,13.4427,111.63,111.57,43.52638966]
[1644343745258,68.5372,111.66,111.58,0.024]
[1644343745462,23.7283,111.66,111.57,45.61680542]
[1644343745660,23.7283,111.66,111.58,0.024]
[1644343746260,13.4402,111.65,111.58,13.4653]
[1644343746661,13.6902,111.65,111.58,13.4653]
[1644343747062,13.6902,111.65,111.58,19.4653]
[1644343747962,19.6902,111.65,111.58,0.024]
[1644343748462,30.4032,111.65,111.58,0.024]
[1644343748665,30.4032,111.65,111.56,0.024]
[1644343748864,23.93016444,111.64,111.55,0.024]
[1644343749060,13.4529,111.62,111.52,0.024]
[1644343749264,44.8578,111.62,111.5,0.024]
[1644343749464,49.6770777,111.61,111.48,47.45181888]
[1644343749761,1.26946444,111.6,111.49,0.024]
[1644343749964,3.37721993,111.6,111.49,0.024]
[1644343750161,2.10775549,111.59,111.49,0.024]
[1644343750362,10.59975549,111.59,111.49,0.024]
[1644343750563,46.03783085,111.57,111.49,0.024]
[1644343750962,52.03783085,111.57,111.49,0.024]
[1644343751763,13.4556,111.55,111.49,0.024]
[1644343751964,13.4556,111.55,111.48,47.42781888]
[1644343752264,19.7056,111.55,111.48,47.42781888]
[1644343753266,19.7056,111.55,111.47,0.024]
[1644343755163,21.81335549,111.55,111.45,0.024]
[1644343755364,22.9681,111.54,111.44,0.024]
[1644343755567,13.4616,111.51,111.42,0.024]
[1644343755764,13.4616,111.51,111.45,0.024]
[1644343755964,48.43580908,111.51,111.42,41.20044877]
[1644343756165,54.43580908,111.51,111.43,0.024]
[1644343758866,54.43580908,111.51,111.43,13.4843]
[1644343759486,19.7116,111.51,111.43,13.4843]
[1644343759666,19.4616,111.51,111.43,13.4843]
[1644343759868,19.4616,111.51,111.43,13.7343]
[1644343760067,19.4616,111.51,111.43,13.4843]
[1644343761069,19.7116,111.51,111.43,13.7343]
[1644343761269,6.25,111.51,111.43,13.7343]
[1644343761469,6.0,111.51,111.44,2.09055232]
[1644343761669,44.8529,111.56,111.46,13.4543]
[1644343761871,28.90601455,111.57,111.46,13.4543]
[1644343762072,24.237,111.57,111.47,46.27270871]
[1644343762269,24.3418,111.6,111.48,0.024]
[1644343762472,69.1781,111.6,111.48,12.44355232]
[1644343762669,69.1781,111.6,111.49,0.024]
[1644343762869,69.1781,111.6,111.49,2.11455232]
[1644343763069,75.1781,111.6,111.5,2.11455232]
[1644343763272,35.83168276,111.59,111.51,42.23349033]
[1644343763469,13.4497,111.58,111.52,13.4492]
[1644343763669,19.4497,111.58,111.52,13.4492]
[1644343764271,13.4497,111.58,111.52,13.4492]
[1644343764870,13.6997,111.58,111.52,13.4492]
[1644343765774,0.25,111.58,111.52,13.4492]
[1644343765974,0.25,111.58,111.53,2.09055232]
[1644343766173,40.69588009,111.63,111.54,13.4455]
[1644343766372,40.69588009,111.63,111.55,37.75585307]
[1644343766573,46.69588009,111.63,111.55,37.77985307]
[1644343767002,60.13948009,111.63,111.55,37.77985307]
[1644343767577,19.4436,111.63,111.56,13.4442]
[1644343767778,6.0,111.63,111.56,13.4442]
[1644343768179,44.804,111.68,111.56,26.49075232]
[1644343768381,1.26946444,111.69,111.57,24.476]
[1644343768581,37.58521891,111.68,111.58,0.024]
[1644343768777,37.58521891,111.68,111.58,2.11455232]
[1644343768979,43.58521891,111.68,111.59,43.96225658]
[1644343769378,37.58521891,111.68,111.59,44.21225658]
[1644343769579,37.58521891,111.68,111.59,56.26825658]
[1644343769778,51.02381891,111.68,111.6,13.4381]
[1644343770578,57.02381891,111.68,111.6,13.4381]
[1644343770781,57.27381891,111.68,111.6,13.4381]
[1644343775606,57.27381891,111.68,111.6,19.4381]
[1644343775802,57.27381891,111.68,111.58,0.024]
[1644343775803,59.3815744,111.68,111.58,0.024]
[1644343776003,59.3815744,111.68,111.58,13.4654]
[1644343776204,59.3815744,111.68,111.59,0.024]
[1644343776402,59.3815744,111.68,111.58,0.024]
[1644343780111,59.1315744,111.68,111.58,13.4662]
[1644343780309,59.1315744,111.68,111.59,0.024]
[1644343780710,59.1315744,111.68,111.58,13.4662]
[1644343781110,59.1315744,111.68,111.58,0.024]
[1644343781510,87.92858499,111.68,111.58,0.024]
[1644343781812,89.19804943,111.68,111.58,0.024]
[1644343782911,98.4282859,111.68,111.56,0.024]
[1644343783610,98.4282859,111.68,111.56,48.61173486]
[1644343783914,98.6782859,111.68,111.56,48.58773486]
[1644343784114,98.6782859,111.68,111.57,0.024]
[1644343784815,112.1133859,111.68,111.57,0.024]
[1644343785014,98.4282859,111.68,111.57,0.024]
[1644343785220,57.02381891,111.68,111.58,2.09055232]
[1644343785412,57.02381891,111.68,111.58,2.11455232]
[1644343785814,57.02381891,111.68,111.58,0.024]
[1644343786817,57.02381891,111.68,111.6,53.28156109]
[1644343788717,57.27381891,111.68,111.6,53.28156109]
[1644343789318,19.4386,111.68,111.6,53.28156109]
[1644343789517,19.4386,111.68,111.6,62.50056109]
[1644343789720,6.0,111.68,111.6,62.50056109]
[1644343790320,40.81291935,111.68,111.6,62.50056109]
[1644343790718,6.0,111.68,111.6,62.50056109]
[1644343790919,6.0,111.69,111.6,64.59111341]
[1644343791119,20.70446444,111.7,111.6,70.59111341]
[1644343791319,1.26946444,111.71,111.6,124.60111341]
[1644343791522,6.0,111.7,111.61,76.5439]
[1644343791719,35.71913046,111.72,111.63,13.4328]
[1644343791919,35.71913046,111.72,111.64,46.20037878]
[1644343792320,35.71913046,111.72,111.64,46.45037878]
[1644343792321,35.96913046,111.72,111.64,46.45037878]
[1644343792520,35.96913046,111.72,111.64,46.20037878]
[1644343792721,41.96913046,111.72,111.64,46.20037878]
[1644343793722,55.40163046,111.72,111.66,13.432]
[1644343796023,20.95196444,111.72,111.66,13.432]
[1644343796222,7.51946444,111.72,111.66,23.334]
[1644343796424,1.51946444,111.72,111.66,23.334]
[1644343796625,0.25,111.72,111.66,23.334]
[1644343796826,14.70086444,111.73,111.66,23.334]
[1644343797024,48.08438165,111.72,111.66,23.334]
[1644343797423,55.35384609,111.72,111.66,23.334]
[1644343797624,55.35384609,111.72,111.66,13.432]
[1644343798224,70.89430158,111.72,111.66,13.432]
[1644343798425,70.89430158,111.72,111.65,37.8475]
[1644343799624,68.78654609,111.72,111.65,37.8475]
[1644343800024,70.89430158,111.72,111.65,24.4135]
[1644343800230,71.14430158,111.72,111.65,24.4135]
[1644343800632,1.26946444,111.71,111.64,46.20037878]
[1644343800834,13.4365,111.69,111.64,46.20037878]
[1644343801035,36.83393855,111.68,111.61,23.7612]
[1644343801235,36.83393855,111.68,111.63,13.4365]
[1644343801436,42.83393855,111.68,111.61,23.7612]
[1644343801835,58.37879404,111.68,111.61,23.7612]
[1644343802038,58.37879404,111.68,111.61,69.01930667]
[1644343802736,59.64825848,111.68,111.61,23.7612]
[1644343802935,58.37879404,111.68,111.59,13.441]
[1644343803136,59.64825848,111.68,111.59,13.441]
[1644343803739,59.64825848,111.68,111.6,47.65442371]
[1644343804546,59.89825848,111.68,111.6,47.65442371]
[1644343807443,59.89825848,111.68,111.58,61.5276]
[1644343807645,59.89825848,111.68,111.58,0.024]
[1644343807845,24.93476444,111.67,111.55,24.8369]
[1644343808045,13.4457,111.64,111.56,0.024]
[1644343808456,36.33683191,111.63,111.56,0.024]
[1644343808655,42.33683191,111.63,111.55,24.8609]
[1644343808856,42.33683191,111.63,111.55,0.024]
[1644343809057,13.4489,111.61,111.55,0.024]
[1644343809456,19.4489,111.61,111.55,0.024]
[1644343810856,19.4489,111.61,111.55,13.4702]
[1644343812057,19.4489,111.61,111.55,0.024]
[1644343812458,19.6989,111.61,111.55,0.024]
[1644343812657,6.25,111.61,111.55,0.024]
[1644343813059,0.25,111.61,111.55,0.024]
[1644343813260,6.0,111.61,111.55,0.024]
[1644343813461,6.0,111.61,111.55,13.4704]
[1644343813861,0.25,111.62,111.55,13.4704]
[1644343814461,13.6959,111.62,111.55,13.4704]
[1644343814661,6.25,111.62,111.55,13.4704]
[1644343814865,6.25,111.62,111.55,25.80595232]
[1644343815262,0.25,111.62,111.55,25.80595232]
[1644343815462,40.99533158,111.64,111.55,49.73255232]
[1644343815663,60.43863158,111.64,111.58,13.443]
[1644343815862,19.4433,111.64,111.58,55.81096154]
[1644343816265,6.0,111.64,111.58,55.81096154]
[1644343816664,13.4431,111.64,111.58,55.81096154]
[1644343816964,19.6931,111.64,111.58,55.81096154]
[1644343817565,6.25,111.64,111.58,55.81096154]
[1644343817965,0.25,111.64,111.58,55.81096154]
[1644343818166,44.14256703,111.65,111.58,55.81096154]
[1644343818367,44.39256703,111.65,111.58,55.81096154]
[1644343818766,57.83476703,111.65,111.58,55.81096154]
[1644343819772,57.83476703,111.65,111.57,0.024]
[1644343820075,2.10775549,111.64,111.54,0.024]
[1644343820271,13.4473,111.61,111.54,0.024]
[1644343820472,13.4473,111.61,111.53,23.7912]
[1644343820673,19.4473,111.61,111.53,23.7912]
[1644343820872,34.51460382,111.6,111.53,23.7912]
[1644343821072,40.51460382,111.6,111.53,23.8152]
[1644343821274,56.07045931,111.6,111.53,23.7912]
[1644343821672,53.96270382,111.6,111.52,0.024]
[1644343821871,53.96270382,111.6,111.52,38.05717201]
[1644343822972,53.96270382,111.6,111.52,51.50757201]
[1644343823677,53.96270382,111.6,111.52,38.05717201]
[1644343824074,54.21270382,111.6,111.52,38.05717201]
[1644343824474,54.21270382,111.6,111.52,38.03317201]
[1644343825879,54.21270382,111.6,111.52,51.48357201]
[1644343826081,56.32045931,111.6,111.52,51.48357201]
[1644343826680,54.21270382,111.6,111.52,51.48357201]
[1644343827480,54.21270382,111.6,111.52,38.03317201]
[1644343827680,54.21270382,111.6,111.52,38.05717201]
[1644343829986,55.48216826,111.6,111.52,38.05717201]
[1644343832691,54.21270382,111.6,111.52,38.05717201]
[1644343833093,19.6981,111.6,111.52,51.48377201]
[1644343833295,19.6981,111.6,111.52,53.81456835]
[1644343833296,6.0,111.6,111.52,53.81456835]
[1644343833894,13.4466,111.61,111.52,53.81456835]
[1644343834095,19.4466,111.61,111.53,0.024]
[1644343834297,19.4466,111.61,111.55,13.4456]
[1644343834507,6.0,111.61,111.56,35.82648752]
[1644343834713,19.4452,111.62,111.56,35.82648752]
[1644343835809,19.4452,111.62,111.56,49.27168752]
[1644343836811,19.6952,111.62,111.56,49.27168752]
[1644343837411,19.4452,111.62,111.56,49.27168752]
[1644343838011,6.0,111.62,111.56,49.52168752]
[1644343838212,19.4442,111.63,111.56,49.27168752]
[1644343838612,19.4442,111.63,111.56,49.54568752]
[1644343838815,19.6942,111.63,111.56,49.54568752]
[1644343839415,19.4442,111.63,111.56,49.54568752]
[1644343840013,19.4442,111.63,111.56,49.29568752]
[1644343840213,19.4442,111.63,111.56,49.54568752]
[1644343840818,19.6942,111.63,111.56,49.54568752]
[1644343841815,19.6942,111.63,111.56,49.29568752]
[1644343842020,19.6942,111.63,111.56,0.024]
[1644343842218,19.6942,111.63,111.55,24.9946]
[1644343842219,1.26946444,111.62,111.55,0.024]
[1644343842415,13.449,111.6,111.54,24.9405]
[1644343842616,19.449,111.6,111.54,24.9405]
[1644343843016,55.63136624,111.6,111.55,48.494367]
[1644343845019,19.449,111.6,111.55,61.941767]
[1644343845218,1.26946444,111.63,111.55,61.941767]
[1644343845426,1.26946444,111.63,111.55,64.29656334]
[1644343845619,1.26946444,111.63,111.55,88.35376334]
[1644343845820,6.0,111.63,111.55,88.35376334]